fUST/lending_fUST_20240910
["ID","MTS","AMOUNT","RATE_DAILY","PERIOD"]
[337671305,1725937844963,-500.0,0.00021917,2]
[337671306,1725937844972,-500.0,0.00021917,2]
[337671307,1725937844982,-500.0,0.00021917,2]
[337671308,1725937844992,-841.25,0.00021917,2]
[337671309,1725937845001,-500.0,0.00021917,2]
[337671310,1725937845011,-501.58509281,0.00021917,2]
[337671311,1725937845020,-500.0,0.00021917,2]
[337671312,1725937845030,-195.94427851,0.00021917,2]
[337671313,1725937845039,-500.0,0.00021917,2]
[337671314,1725937845048,-500.0,0.00021917,2]
[337671315,1725937845057,-500.0,0.00021917,2]
[337671316,1725937845067,-500.0,0.00021917,2]
[337671317,1725937845076,-500.0,0.00021917,2]
[337671318,1725937845086,-500.0,0.00021917,2]
[337671319,1725937845095,-500.0,0.00021917,2]
[337671320,1725937845105,-500.0,0.00021917,2]
[337671321,1725937845115,-500.0,0.00021917,2]
[337671322,1725937845124,-500.0,0.00021917,2]
[337671323,1725937845134,-500.0,0.00021917,2]
[337671324,1725937845143,-527.81934227,0.00021917,2]
[337671325,1725937845153,-501.30145709,0.00021917,2]
[337671326,1725937845163,-500.0,0.00021917,2]
[337671327,1725937845172,-500.0,0.00021917,2]
[337671328,1725937845182,-500.0,0.00021917,2]
[337671329,1725937845191,-500.0,0.00021917,2]
[337671330,1725937845201,-501.89407592,0.00021917,2]
[337671331,1725937845212,-500.0,0.00021917,2]
[337671332,1725937845221,-502.58852765,0.00021917,2]
[337671333,1725937845231,-500.0,0.00021917,2]
[337671334,1725937845241,-500.0,0.00021917,2]
[337671335,1725937845253,-500.0,0.00021917,2]
[337671336,1725937845263,-501.36403863,0.00021917,2]
[337671337,1725937845272,-500.0,0.00021917,2]
[337671338,1725937845282,-501.94627665,0.00021917,2]
[337671339,1725937845292,-503.09004834,0.00021917,2]
[337671340,1725937845303,-1003.24,0.00021917,2]
[337671341,1725937845312,-500.0,0.00021917,2]
[337671342,1725937845324,-500.0,0.00021917,2]
[337671343,1725937845334,-503.44565539,0.00021917,2]
[337671344,1725937845344,-500.0,0.00021917,2]
[337671345,1725937845354,-500.0,0.00021917,2]
[337671346,1725937845364,-503.07509185,0.00021917,2]
[337671347,1725937845375,-503.59430299,0.00021917,2]
[337671348,1725937845385,-503.78826697,0.00021917,2]
[337671349,1725937845395,-500.0,0.00021917,2]
[337671350,1725937845406,-500.0,0.00021917,2]
[337671351,1725937845417,-707.51,0.00021917,2]
[337671352,1725937845428,-1071.97,0.00021917,2]
[337671353,1725937845438,-502.93161317,0.00021917,2]
[337671354,1725937845449,-500.0,0.00021917,2]
[337671355,1725937845460,-500.0,0.00021917,2]
[337671356,1725937845471,-500.0,0.00021917,2]
[337671357,1725937845483,-500.0,0.00021917,2]
[337671358,1725937845494,-500.92616293,0.00021917,2]
[337671359,1725937845506,-500.0,0.00021917,2]
[337671360,1725937845516,-500.0,0.00021917,2]
[337671361,1725937845526,-500.0,0.00021917,2]
[337671362,1725937845536,-502.57110574,0.00021917,2]
[337671363,1725937845547,-4017.97,0.00021917,2]
[337671364,1725937845557,-500.0,0.00021917,2]
[337671365,1725937845567,-502.56308793,0.00021917,2]
[337671366,1725937845577,-502.507917,0.00021917,2]
[337671367,1725937845587,-336.55467153,0.00021917,2]
[337671368,1725937845597,-500.0,0.00021917,2]
[337671369,1725937845607,-500.0,0.00021917,2]
[337671370,1725937845617,-509.67127662,0.00021917,2]
[337671371,1725937845626,-502.7144767,0.00021917,2]
[337671372,1725937845636,-500.0,0.00021917,2]
[337671373,1725937845646,-502.98057109,0.00021917,2]
[337671374,1725937845657,-733.29,0.00021917,2]
[337671375,1725937845667,-500.0,0.00021917,2]
[337671376,1725937845678,-500.0,0.00021917,2]
[337671377,1725937845689,-230.5802708,0.00021917,2]
[337671378,1725937845700,-500.0,0.00021917,2]
[337671379,1725937845711,-500.0,0.00021917,2]
[337671380,1725937845721,-198.97782635,0.00021917,2]
[337671381,1725937845732,-500.0,0.00021917,2]
[337671382,1725937845742,-500.0,0.00021917,2]
[337671383,1725937845753,-747.9,0.00021917,2]
[337671384,1725937845763,-500.0,0.00021917,2]
[337671385,1725937845772,-509.47086203,0.00021917,2]
[337671386,1725937845783,-500.0,0.00021917,2]
[337671387,1725937845793,-500.0,0.00021917,2]
[337671388,1725937845802,-821.56,0.00021917,2]
[337671389,1725937845813,-500.0,0.00021917,2]
[337671390,1725937845823,-500.0,0.00021917,2]
[337671391,1725937845834,-288.79315377,0.00021917,2]
[337671392,1725937845844,-500.0,0.00021917,2]
[337671393,1725937845855,-568.18,0.00021917,2]
[337671394,1725937845864,-568.18,0.00021917,2]
[337671395,1725937845874,-568.18,0.00021917,2]
[337671396,1725937845885,-568.18,0.00021917,2]
[337671397,1725937845895,-568.18,0.00021917,2]
[337671398,1725937845907,-568.18,0.00021917,2]
[337671399,1725937845917,-500.0,0.00021917,2]
[337671400,1725937845928,-568.18,0.00021917,2]
[337671401,1725937845939,-568.18,0.00021917,2]
[337671402,1725937845950,-568.18,0.00021917,2]
[337671403,1725937845960,-568.18,0.00021917,2]
[337671404,1725937845971,-568.18,0.00021917,2]
[337671405,1725937845982,-568.18,0.00021917,2]
[337671406,1725937845992,-568.18,0.00021917,2]
[337671407,1725937846002,-568.18,0.00021917,2]
[337671408,1725937846013,-568.18,0.00021917,2]
[337671409,1725937846024,-568.18,0.00021917,2]
[337671410,1725937846035,-500.0,0.00021917,2]
[337671412,1725937846045,-568.18,0.00021917,2]
[337671413,1725937846057,-568.18,0.00021917,2]
[337671414,1725937846066,-568.18,0.00021917,2]
[337671415,1725937846076,-568.18,0.00021917,2]
[337671416,1725937846086,-568.18,0.00021917,2]
[337671417,1725937846097,-500.0,0.00021917,2]
[337671418,1725937846109,-500.0,0.00021917,2]
[337671419,1725937846119,-568.18,0.00021917,2]
[337671420,1725937846130,-568.18,0.00021917,2]
[337671421,1725937846142,-568.31452382,0.00021917,2]
[337671422,1725937846153,-500.0,0.00021917,2]
[337671423,1725937846163,-500.0,0.00021917,2]
[337671424,1725937846174,-500.0,0.00021917,2]
[337671425,1725937846185,-703.05,0.00021917,2]
[337671426,1725937846196,-766.34,0.00021917,2]
[337671427,1725937846207,-500.0,0.00021917,2]
[337671428,1725937846217,-500.0,0.00021917,2]
[337671429,1725937846229,-500.0,0.00021917,2]
[337671430,1725937846239,-698.24,0.00021917,2]
[337671431,1725937846254,-698.24,0.00021917,2]
[337671432,1725937846264,-698.24,0.00021917,2]
[337671434,1725937846274,-797.08,0.00021917,2]
[337671437,1725937846283,-698.24,0.00021917,2]
[337671438,1725937846293,-698.24,0.00021917,2]
[337671439,1725937846302,-698.24,0.00021917,2]
[337671440,1725937846313,-698.24,0.00021917,2]
[337671441,1725937846327,-698.24,0.00021917,2]
[337671442,1725937846336,-698.24,0.00021917,2]
[337671443,1725937846346,-698.24,0.00021917,2]
[337671444,1725937846355,-500.0,0.00021917,2]
[337671445,1725937846364,-961.31,0.00021917,2]
[337671446,1725937846375,-698.24,0.00021917,2]
[337671447,1725937846384,-698.24,0.00021917,2]
[337671448,1725937846394,-698.24,0.00021917,2]
[337671449,1725937846404,-698.24,0.00021917,2]
[337671450,1725937846413,-500.0,0.00021917,2]
[337671451,1725937846422,-698.24,0.00021917,2]
[337671452,1725937846432,-698.24,0.00021917,2]
[337671453,1725937846441,-698.24,0.00021917,2]
[337671454,1725937846450,-500.0,0.00021917,2]
[337671455,1725937846461,-698.24,0.00021917,2]
[337671456,1725937846471,-698.24,0.00021917,2]
[337671457,1725937846482,-698.24,0.00021917,2]
[337671458,1725937846493,-698.24,0.00021917,2]
[337671459,1725937846504,-698.24,0.00021917,2]
[337671460,1725937846514,-500.0,0.00021917,2]
[337671461,1725937846523,-698.24,0.00021917,2]
[337671462,1725937846533,-698.36394992,0.00021917,2]
[337671463,1725937846542,-502.90350409,0.00021917,2]
[337671464,1725937846551,-500.0,0.00021917,2]
[337671465,1725937846562,-500.0,0.00021917,2]
[337671466,1725937846571,-500.0,0.00021917,2]
[337671467,1725937846583,-500.0,0.00021917,2]
[337671468,1725937846593,-151.0,0.00021917,2]
[337671469,1725937846602,-500.0,0.00021917,2]
[337671470,1725937846612,-151.0,0.00021917,2]
[337671471,1725937846621,-510.14024662,0.00021917,2]
[337671472,1725937846631,-151.0,0.00021917,2]
[337671473,1725937846641,-497.73681733,0.00021917,2]
[337671474,1725937846651,-151.0,0.00021917,2]
[337671475,1725937846661,-244.401639,0.00021917,2]
[337671476,1725937846671,-500.0,0.00021917,2]
[337671477,1725937846682,-1077.32,0.00021917,2]
[337671478,1725937846693,-879.44,0.00021917,2]
[337671479,1725937846703,-1002.51,0.00021917,2]
[337671480,1725937846712,-500.0,0.00021917,2]
[337671481,1725937846723,-500.0,0.00021917,2]
[337671482,1725937846733,-500.0,0.00021917,2]
[337671483,1725937846743,-500.0,0.00021917,2]
[337671484,1725937846755,-500.0,0.00021917,2]
[337671485,1725937846766,-797.31,0.00021917,2]
[337671486,1725937846776,-500.0,0.00021917,2]
[337671487,1725937846786,-500.0,0.00021917,2]
[337671488,1725937846795,-500.0,0.00021917,2]
[337671489,1725937846804,-500.0,0.00021917,2]
[337671490,1725937846814,-862.36,0.00021917,2]
[337671491,1725937846824,-592.36,0.00021917,2]
[337671492,1725937846834,-575.62,0.00021917,2]
[337671493,1725937846843,-500.0,0.00021917,2]
[337671494,1725937846853,-504.42133868,0.00021917,2]
[337671495,1725937846863,-500.0,0.00021917,2]
[337671496,1725937846872,-540.85574823,0.00021917,2]
[337671497,1725937846882,-508.36,0.00021917,2]
[337671498,1725937846892,-500.0,0.00021917,2]
[337671499,1725937846902,-500.0,0.00021917,2]
[337671500,1725937846912,-151.0,0.00021917,2]
[337671501,1725937846923,-500.0,0.00021917,2]
[337671502,1725937846933,-151.0,0.00021917,2]
[337671503,1725937846943,-504.48374355,0.00021917,2]
[337671504,1725937846952,-151.0,0.00021917,2]
[337671505,1725937846962,-151.0,0.00021917,2]
[337671506,1725937846971,-500.0,0.00021917,2]
[337671507,1725937846981,-500.0,0.00021917,2]
[337671508,1725937846991,-500.0,0.00021917,2]
[337671509,1725937847000,-500.0,0.00021917,2]
[337671510,1725937847010,-500.0,0.00021917,2]
[337671511,1725937847019,-500.0,0.00021917,2]
[337671512,1725937847029,-748.08,0.00021917,2]
[337671513,1725937847039,-501.87317101,0.00021917,2]
[337671514,1725937847049,-500.0,0.00021917,2]
[337671515,1725937847058,-500.0,0.00021917,2]
[337671516,1725937847067,-501.42546456,0.00021917,2]
[337671517,1725937847077,-500.0,0.00021917,2]
[337671518,1725937847086,-595.3,0.00021917,2]
[337671519,1725937847095,-500.0,0.00021917,2]
[337671520,1725937847105,-500.0,0.00021917,2]
[337671521,1725937847114,-509.65392536,0.00021917,2]
[337671522,1725937847123,-511.06413432,0.00021917,2]
[337671523,1725937847135,-500.0,0.00021917,2]
[337671524,1725937847145,-514.4621141,0.00021917,2]
[337671525,1725937847155,-464.28913826,0.00021917,2]
[337671526,1725937847165,-500.0,0.00021917,2]
[337671527,1725937847175,-500.0,0.00021917,2]
[337671528,1725937847186,-500.0,0.00021917,2]
[337671529,1725937847197,-521.49461321,0.00021917,2]
[337671530,1725937847208,-500.0,0.00021917,2]
[337671531,1725937847218,-500.0,0.00021917,2]
[337671532,1725937847228,-500.0,0.00021917,2]
[337671533,1725937847238,-500.0,0.00021917,2]
[337671534,1725937847252,-502.86048436,0.00021917,2]
[337671535,1725937847263,-500.0,0.00021917,2]
[337671536,1725937847273,-616.84360758,0.00021917,2]
[337671537,1725937847284,-183.84844397,0.00021917,2]
[337671538,1725937847294,-302.33,0.00021917,2]
[337671539,1725937847303,-1473.16,0.00021917,2]
[337671540,1725937847314,-500.0,0.00021917,2]
[337671541,1725937847325,-500.0,0.00021917,2]
[337671542,1725937847335,-500.0,0.00021917,2]
[337671543,1725937847346,-534.66,0.00021917,2]
[337671544,1725937847357,-500.0,0.00021917,2]
[337671545,1725937847366,-779.84,0.00021917,2]
[337671546,1725937847377,-674.96,0.00021917,2]
[337671547,1725937847386,-500.0,0.00021917,2]
[337671548,1725937847395,-500.0,0.00021917,2]
[337671549,1725937847404,-500.0,0.00021917,2]
[337671550,1725937847415,-500.0,0.00021917,2]
[337671551,1725937847424,-500.0,0.00021917,2]
[337671552,1725937847433,-934.14,0.00021917,2]
[337671553,1725937847443,-934.14,0.00021917,2]
[337671554,1725937847452,-500.0,0.00021917,2]
[337671555,1725937847461,-934.14,0.00021917,2]
[337671556,1725937847471,-934.14,0.00021917,2]
[337671557,1725937847481,-934.14,0.00021917,2]
[337671558,1725937847490,-934.14,0.00021917,2]
[337671559,1725937847499,-934.14,0.00021917,2]
[337671560,1725937847509,-502.72473416,0.00021917,2]
[337671561,1725937847519,-934.14,0.00021917,2]
[337671562,1725937847528,-934.14,0.00021917,2]
[337671563,1725937847538,-934.14,0.00021917,2]
[337671564,1725937847547,-500.0,0.00021917,2]
[337671565,1725937847557,-934.14,0.00021917,2]
[337671566,1725937847696,-934.14,0.00021917,2]
[337671567,1725937847707,-934.14,0.00021917,2]
[337671568,1725937847717,-934.14,0.00021917,2]
[337671569,1725937847726,-934.14,0.00021917,2]
[337671570,1725937847736,-500.0,0.00021917,2]
[337671571,1725937847746,-527.07,0.00021917,2]
[337671572,1725937847755,-934.14,0.00021917,2]
[337671573,1725937847764,-934.14,0.00021917,2]
[337671574,1725937847774,-934.14,0.00021917,2]
[337671575,1725937847783,-934.14,0.00021917,2]
[337671576,1725937847794,-934.14,0.00021917,2]
[337671577,1725937847803,-567.31,0.00021917,2]
[337671578,1725937847813,-934.14,0.00021917,2]
[337671579,1725937847822,-934.14,0.00021917,2]
[337671580,1725937847832,-934.14,0.00021917,2]
[337671581,1725937847843,-934.32569463,0.00021917,2]
[337671582,1725937847852,-500.0,0.00021917,2]
[337671583,1725937847861,-500.0,0.00021917,2]
[337671584,1725937847870,-545.89,0.00021917,2]
[337671585,1725937847880,-527.42535031,0.00021917,2]
[337671586,1725937847889,-500.0,0.00021917,2]
[337671587,1725937847899,-500.0,0.00021917,2]
[337671588,1725937847909,-500.0,0.00021917,2]
[337671589,1725937847918,-500.0,0.00021917,2]
[337671590,1725937847928,-500.0,0.00021917,2]
[337671591,1725937847937,-500.0,0.00021917,2]
[337671592,1725937847947,-500.0,0.00021917,2]
[337671593,1725937847956,-500.0,0.00021917,2]
[337671594,1725937847965,-551.43,0.00021917,2]
[337671595,1725937847974,-500.0,0.00021917,2]
[337671596,1725937847983,-500.0,0.00021917,2]
[337671597,1725937847993,-893.5,0.00021917,2]
[337671598,1725937848003,-500.0,0.00021917,2]
[337671599,1725937848015,-500.0,0.00021917,2]
[337671600,1725937848024,-500.0,0.00021917,2]
[337671601,1725937848034,-500.0,0.00021917,2]
[337671602,1725937848043,-500.0,0.00021917,2]
[337671603,1725937848052,-759.58,0.00021917,2]
[337671604,1725937848062,-500.0,0.00021917,2]
[337671605,1725937848071,-500.0,0.00021917,2]
[337671606,1725937848081,-500.0,0.00021917,2]
[337671607,1725937848091,-818.12,0.00021917,2]
[337671608,1725937848101,-644.42100116,0.00021917,2]
[337671609,1725937848110,-500.0,0.00021917,2]
[337671610,1725937848119,-500.0,0.00021917,2]
[337671611,1725937848128,-243.94666284,0.00021917,2]
[337671612,1725937848138,-500.0,0.00021917,2]
[337671613,1725937848147,-500.0,0.00021917,2]
[337671614,1725937848156,-500.0,0.00021917,2]
[337671615,1725937848166,-500.0,0.00021917,2]
[337671616,1725937848175,-500.0,0.00021917,2]
[337671617,1725937848184,-500.0,0.00021917,2]
[337671618,1725937848193,-500.0,0.00021917,2]
[337671619,1725937848203,-1162.47,0.00021917,2]
[337671620,1725937848213,-633.53,0.00021917,2]
[337671621,1725937848222,-1271.43,0.00021917,2]
[337671622,1725937848231,-1616.01,0.00021917,2]
[337671623,1725937848241,-521.75749717,0.00021917,2]
[337671624,1725937848254,-503.44120447,0.00021917,2]
[337671625,1725937848265,-500.0,0.00021917,2]
[337671626,1725937848274,-500.0,0.00021917,2]
[337671627,1725937848284,-593.79,0.00021917,2]
[337671628,1725937848294,-1067.36,0.00021917,2]
[337671629,1725937848304,-500.0,0.00021917,2]
[337671630,1725937848315,-500.0,0.00021917,2]
[337671631,1725937848325,-626.06,0.00021917,2]
[337671632,1725937848336,-981.72,0.00021917,2]
[337671633,1725937848346,-500.0,0.00021917,2]
[337671634,1725937848356,-640.52,0.00021917,2]
[337671635,1725937848366,-500.0,0.00021917,2]
[337671636,1725937848379,-500.0,0.00021917,2]
[337671637,1725937848389,-511.45152402,0.00021917,2]
[337671638,1725937848399,-500.0,0.00021917,2]
[337671639,1725937848409,-502.52948924,0.00021917,2]
[337671640,1725937848419,-557.29,0.00021917,2]
[337671641,1725937848428,-500.0,0.00021917,2]
[337671642,1725937848438,-500.0,0.00021917,2]
[337671643,1725937848448,-500.0,0.00021917,2]
[337671644,1725937848458,-500.0,0.00021917,2]
[337671645,1725937848468,-500.0,0.00021917,2]
[337671646,1725937848478,-808.27,0.00021917,2]
[337671647,1725937848488,-500.0,0.00021917,2]
[337671648,1725937848498,-500.0,0.00021917,2]
[337671649,1725937848507,-232.89018059,0.00021917,2]
[337671650,1725937848517,-409.35559752,0.00021917,2]
[337671651,1725937848527,-500.0,0.00021917,2]
[337671652,1725937848537,-673.47,0.00021917,2]
[337671653,1725937848547,-502.95115596,0.00021917,2]
[337671654,1725937848557,-501.91094958,0.00021917,2]
[337671655,1725937848567,-500.0,0.00021917,2]
[337671656,1725937848577,-925.99,0.00021917,2]
[337671657,1725937848587,-500.0,0.00021917,2]
[337671658,1725937848598,-564.43070216,0.00021917,2]
[337671659,1725937848608,-500.0,0.00021917,2]
[337671660,1725937848618,-751.0,0.00021917,2]
[337671661,1725937848629,-500.0,0.00021917,2]
[337671662,1725937848638,-503.65518906,0.00021917,2]
[337671663,1725937848648,-500.0,0.00021917,2]
[337671664,1725937848659,-1687.6,0.00021917,2]
[337671665,1725937848668,-151.0,0.00021917,2]
[337671666,1725937848678,-151.0,0.00021917,2]
[337671667,1725937848687,-745.54,0.00021917,2]
[337671668,1725937848697,-151.0,0.00021917,2]
[337671669,1725937848707,-151.0,0.00021917,2]
[337671670,1725937848718,-151.0,0.00021917,2]
[337671671,1725937848727,-500.0,0.00021917,2]
[337671672,1725937848738,-500.0,0.00021917,2]
[337671673,1725937848748,-509.12685801,0.00021917,2]
[337671674,1725937848758,-500.0,0.00021917,2]
[337671675,1725937848768,-500.0,0.00021917,2]
[337671676,1725937848778,-500.0,0.00021917,2]
[337671677,1725937848788,-500.0,0.00021917,2]
[337671678,1725937848798,-2008.37,0.00021917,2]
[337671679,1725937848808,-1385.27,0.00021917,2]
[337671680,1725937848817,-151.0,0.00021917,2]
[337671681,1725937848827,-152.273392,0.00021917,2]
[337671682,1725937848837,-500.0,0.00021917,2]
[337671683,1725937848847,-500.0,0.00021917,2]
[337671684,1725937848857,-687.67,0.00021917,2]
[337671685,1725937848867,-500.0,0.00021917,2]
[337671686,1725937848877,-596.65,0.00021917,2]
[337671687,1725937848887,-500.0,0.00021917,2]
[337671688,1725937848897,-500.0,0.00021917,2]
[337671689,1725937848907,-501.78523145,0.00021917,2]
[337671690,1725937848917,-2184.46,0.00021917,2]
[337671691,1725937848926,-503.87599347,0.00021917,2]
[337671692,1725937848936,-500.0,0.00021917,2]
[337671693,1725937848946,-593.1,0.00021917,2]
[337671694,1725937848956,-500.0,0.00021917,2]
[337671695,1725937848966,-508.87319388,0.00021917,2]
[337671696,1725937848975,-500.0,0.00021917,2]
[337671697,1725937848985,-505.51201439,0.00021917,2]
[337671698,1725937848994,-500.0,0.00021917,2]
[337671699,1725937849004,-500.0,0.00021917,2]
[337671700,1725937849013,-500.0,0.00021917,2]
[337671701,1725937849022,-644.20839796,0.00021917,2]
[337671702,1725937849032,-500.0,0.00021917,2]
[337671703,1725937849042,-1618.92,0.00021917,2]
[337671704,1725937849052,-500.0,0.00021917,2]
[337671705,1725937849063,-500.0,0.00021917,2]
[337671706,1725937849072,-1173.75,0.00021917,2]
[337671707,1725937849082,-501.09234576,0.00021917,2]
[337671708,1725937849092,-500.0,0.00021917,2]
[337671709,1725937849102,-725.39,0.00021917,2]
[337671710,1725937849111,-500.0,0.00021917,2]
[337671711,1725937849121,-500.0,0.00021917,2]
[337671712,1725937849130,-500.0,0.00021917,2]
[337671713,1725937849140,-500.0,0.00021917,2]
[337671714,1725937849150,-151.0,0.00021917,2]
[337671715,1725937849161,-151.0,0.00021917,2]
[337671716,1725937849171,-503.65313905,0.00021917,2]
[337671717,1725937849181,-500.0,0.00021917,2]
[337671718,1725937849191,-625.53,0.00021917,2]
[337671719,1725937849201,-500.0,0.00021917,2]
[337671720,1725937849211,-500.0,0.00021917,2]
[337671721,1725937849220,-500.0,0.00021917,2]
[337671722,1725937849230,-1000.0,0.00021917,2]
[337671723,1725937849240,-598.27335902,0.00021917,2]
[337671724,1725937849254,-500.0,0.00021917,2]
[337671725,1725937849265,-500.0,0.00021917,2]
[337671726,1725937849276,-515.97155317,0.00021917,2]
[337671727,1725937849286,-1247.14,0.00021917,2]
[337671728,1725937849296,-587.1339477,0.00021917,2]
[337671729,1725937849305,-500.0,0.00021917,2]
[337671730,1725937849315,-500.0,0.00021917,2]
[337671731,1725937849324,-253.14116381,0.00021917,2]
[337671732,1725937849337,-1304.76,0.00021917,2]
[337671733,1725937849346,-500.0,0.00021917,2]
[337671734,1725937849357,-1129.81,0.00021917,2]
[337671735,1725937849366,-500.0,0.00021917,2]
[337671736,1725937849376,-500.0,0.00021917,2]
[337671737,1725937849386,-500.0,0.00021917,2]
[337671738,1725937849396,-500.0,0.00021917,2]
[337671739,1725937849406,-500.0,0.00021917,2]
[337671740,1725937849416,-500.0,0.00021917,2]
[337671741,1725937849425,-350.4651043,0.00021917,2]
[337671742,1725937849435,-500.0,0.00021917,2]
[337671743,1725937849445,-570.21959126,0.00021917,2]
[337671744,1725937849456,-500.0,0.00021917,2]
[337671745,1725937849466,-500.0,0.00021917,2]
[337671746,1725937849475,-505.25357929,0.00021917,2]
[337671747,1725937849484,-500.0,0.00021917,2]
[337671748,1725937849494,-503.07536454,0.00021917,2]
[337671749,1725937849504,-500.0,0.00021917,2]
[337671750,1725937849514,-500.0,0.00021917,2]
[337671751,1725937849524,-567.95,0.00021917,2]
[337671752,1725937849535,-868.53,0.00021917,2]
[337671753,1725937849544,-500.0,0.00021917,2]
[337671754,1725937849554,-500.0,0.00021917,2]
[337671755,1725937849564,-1991.63,0.00021917,2]
[337671756,1725937849574,-502.90676707,0.00021917,2]
[337671757,1725937849584,-500.0,0.00021917,2]
[337671758,1725937849595,-916.71,0.00021917,2]
[337671759,1725937849604,-600.08526517,0.00021917,2]
[337671760,1725937849614,-500.0,0.00021917,2]
[337671761,1725937849624,-500.0,0.00021917,2]
[337671762,1725937849633,-510.23244367,0.00021917,2]
[337671763,1725937849643,-929.96,0.00021917,2]
[337671764,1725937849654,-500.0,0.00021917,2]
[337671765,1725937849665,-500.0,0.00021917,2]
[337671766,1725937849674,-500.0,0.00021917,2]
[337671767,1725937849684,-500.0,0.00021917,2]
[337671768,1725937849693,-500.0,0.00021917,2]
[337671769,1725937849704,-1210.41,0.00021917,2]
[337671770,1725937849714,-500.0,0.00021917,2]
[337671771,1725937849723,-504.22344607,0.00021917,2]
[337671772,1725937849733,-500.0,0.00021917,2]
[337671773,1725937849748,-500.0,0.00021917,2]
[337671774,1725937849758,-1990.7,0.00021917,2]
[337671775,1725937849768,-500.0,0.00021917,2]
[337671776,1725937849778,-501.87313956,0.00021917,2]
[337671777,1725937849787,-500.0,0.00021917,2]
[337671778,1725937849797,-500.0,0.00021917,2]
[337671779,1725937849808,-226.976582,0.00021917,2]
[337671780,1725937849817,-500.0,0.00021917,2]
[337671781,1725937849828,-500.0,0.00021917,2]
[337671782,1725937849838,-509.64044275,0.00021917,2]
[337671783,1725937849848,-500.0,0.00021917,2]
[337671784,1725937849857,-505.73279037,0.00021917,2]
[337671785,1725937849867,-1388.46,0.00021917,2]
[337671786,1725937849877,-500.0,0.00021917,2]
[337671787,1725937849886,-1174.81,0.00021917,2]
[337671788,1725937849896,-295.458454,0.00021917,2]
[337671789,1725937849906,-500.0,0.00021917,2]
[337671790,1725937849917,-1145.91,0.00021917,2]
[337671791,1725937849927,-500.0,0.00021917,2]
[337671792,1725937849938,-500.0,0.00021917,2]
[337671793,1725937849948,-500.0,0.00021917,2]
[337671794,1725937849959,-500.0,0.00021917,2]
[337671795,1725937849969,-500.0,0.00021917,2]
[337671796,1725937849978,-176.81186051,0.00021917,2]
[337671797,1725937849988,-295.458444,0.00021917,2]
[337671798,1725937849997,-500.0,0.00021917,2]
[337671799,1725937850008,-1287.36,0.00021917,2]
[337671800,1725937850018,-504.9657754,0.00021917,2]
[337671801,1725937850031,-151.0,0.00021917,2]
[337671802,1725937850041,-722.6,0.00021917,2]
[337671803,1725937850051,-502.41457542,0.00021917,2]
[337671804,1725937850061,-483.009698,0.00021917,2]
[337671805,1725937850071,-500.0,0.00021917,2]
[337671806,1725937850081,-654.73,0.00021917,2]
[337671807,1725937850091,-500.0,0.00021917,2]
[337671808,1725937850101,-500.0,0.00021917,2]